bitfinex/quotes_ETHUSD_20240715
["timestamp","ask_amount","ask_price","bid_price","bid_amount"]
[1721024149469,1.5,3348.9,3348.6,2.67552695]
[1721024150116,1.54569152,3348.9,3348.6,2.67552695]
[1721024150553,1.5,3348.9,3348.6,2.67552695]
[1721024150854,1.4852,3348.8,3348.6,2.67552695]
[1721024152146,1.4852,3348.8,3348.6,0.31232695]
[1721024153738,1.53089152,3348.8,3348.6,0.31232695]
[1721024153937,1.5,3348.7,3348.6,0.31232695]
[1721024154136,1.5,3348.5,3348.3,3.0]
[1721024154373,1.5,3348.5,3348.3,0.31233623]
[1721024154575,1.5,3348.5,3348.3,3.31233623]
[1721024155843,1.5,3348.5,3348.3,0.31233623]
[1721024156939,1.4852,3348.4,3348.3,0.31233623]
[1721024157408,4.17305,3348.4,3348.3,0.31233623]
[1721024157565,1.5,3347.7,3347.1,5.05202]
[1721024157781,1.5,3347.7,3347.6,0.3122937]
[1721024157953,1.5,3347.7,3347.2,2.75686581]
[1721024158156,1.4852,3347.8,3347.6,0.06796105]
[1721024158465,1.4852,3347.8,3347.7,0.06792986]
[1721024158777,1.5,3347.9,3347.6,0.31229914]
[1721024158967,1.5,3347.9,3347.7,0.0680316]
[1721024159273,1.5,3347.9,3347.6,0.31229914]
[1721024159478,1.4852,3348.0,3347.7,0.0680331]
[1721024159644,1.4852,3348.0,3347.6,3.00075914]
[1721024159844,1.4852,3348.2,3347.7,2.7564316]
[1721024160067,4.47057026,3348.3,3348.0,2.6881]
[1721024160281,1.5,3348.5,3348.1,2.75597687]
[1721024160487,1.4852,3348.4,3348.1,0.06790687]
[1721024160645,1.4852,3348.4,3348.0,5.68815]
[1721024160848,1.4852,3348.6,3348.1,2.75597388]
[1721024161671,1.4852,3348.4,3348.1,2.75597388]
[1721024162485,1.5,3348.5,3348.1,2.75597388]
[1721024163390,1.4852,3348.4,3348.1,0.06790388]
[1721024163558,1.4852,3348.4,3348.1,2.75599388]
[1721024164344,1.5,3348.5,3348.1,2.75599388]
[1721024165249,1.4852,3348.4,3348.1,2.75599388]
[1721024165660,1.4852,3348.4,3348.1,0.06790388]
[1721024166356,2.9852,3348.2,3348.1,0.06790388]
[1721024166562,1.5,3348.2,3348.1,0.06790388]
[1721024166951,1.5,3348.2,3347.8,5.68832]
[1721024167484,2.9852,3348.2,3347.9,0.06789292]
[1721024168971,1.5,3348.2,3347.9,0.06789292]
[1721024169372,1.5,3348.2,3347.9,2.75613292]
[1721024170398,1.35,3348.2,3347.9,2.75613292]
[1721024174274,1.35,3348.6,3348.1,2.68809]
[1721024174493,1.35,3348.8,3348.2,0.06787419]
[1721024174693,2.8352,3348.8,3348.2,0.06787419]
[1721024175098,2.8352,3348.8,3348.3,2.35971]
[1721024175302,2.8352,3348.8,3348.4,0.06781184]
[1721024176021,3.6761,3349.0,3348.4,0.06781184]
[1721024176273,3.6761,3349.0,3348.7,2.68754]
[1721024176546,5.95577026,3349.4,3348.8,2.75516016]
[1721024176743,1.35,3349.6,3349.3,2.68709]
[1721024176961,1.35,3349.6,3349.4,0.06498333]
[1721024178299,5.2203,3349.8,3349.4,0.06498333]
[1721024178505,1.35,3350.0,3349.7,2.6868]
[1721024178845,1.35,3350.0,3349.2,0.05970782]
[1721024178846,2.8352,3350.2,3349.9,2.68664]
[1721024179143,2.8352,3350.4,3350.1,2.68644]
[1721024179340,2.8352,3350.4,3350.2,0.06457861]
[1721024179635,2.8352,3350.4,3349.7,2.68679]
[1721024179636,2.8352,3350.4,3350.0,2.68655]
[1721024180145,2.8352,3350.4,3350.1,0.06460676]
[1721024181536,1.4852,3350.2,3350.1,0.06460676]
[1721024181754,1.4852,3350.0,3349.6,2.68687]
[1721024181920,1.4852,3350.0,3349.7,3.0]
[1721024182126,1.4852,3350.2,3349.7,5.6868]
[1721024182315,1.35,3350.3,3349.8,2.6867]
[1721024182514,1.35,3350.3,3350.0,2.68654]
[1721024183827,1.4852,3350.4,3350.0,2.68654]
[1721024185456,1.4852,3350.4,3349.8,2.6867]
[1721024186016,1.35,3350.0,3349.7,3.0]
[1721024186439,2.8352,3350.0,3349.7,3.0]
[1721024186636,1.35,3350.0,3349.7,5.68678]
[1721024187216,1.4852,3350.2,3349.7,5.68678]
[1721024187217,1.4852,3350.2,3349.9,2.68664]
[1721024187710,1.4852,3350.2,3349.7,5.68678]
[1721024188446,1.35,3349.7,3349.2,2.68714]
[1721024188617,1.35,3349.7,3349.1,2.68727]
[1721024189128,1.35,3349.7,3348.9,2.68743]
[1721024189334,1.35,3349.4,3348.9,5.37486]
[1721024190057,1.35,3349.4,3349.0,3.0]
[1721024191643,1.35,3349.4,3349.0,5.68736]
[1721024192225,1.4852,3349.8,3349.3,2.68706]
[1721024192567,1.4852,3350.0,3349.6,2.68687]
[1721024194047,1.4852,3350.0,3349.7,0.06037392]
[1721024194236,1.4852,3350.2,3349.7,0.06037392]
[1721024194565,1.4852,3350.2,3349.8,2.68668]
[1721024195009,1.4852,3350.2,3349.9,0.06029966]
[1721024195581,1.35,3350.5,3350.0,2.68655]
[1721024196063,1.35,3350.5,3350.1,0.06022243]
[1721024196473,1.4852,3350.4,3350.1,0.06022243]
[1721024196776,1.4852,3350.4,3350.2,0.06019129]
[1721024197266,1.35,3350.0,3349.9,3.0]
[1721024197470,2.8352,3350.0,3349.5,2.68691]
[1721024197625,2.8352,3350.0,3349.6,3.0]
[1721024197826,2.8352,3350.0,3349.6,5.68688]
[1721024198664,2.8352,3350.0,3349.6,3.0]
[1721024198875,1.4852,3349.8,3349.5,5.68695]
[1721024199035,1.4852,3349.8,3349.6,2.68688]
[1721024199227,1.4852,3349.8,3349.7,3.0]
[1721024200085,2.8352,3350.0,3349.5,3.0]
[1721024200289,2.8352,3350.0,3349.6,2.68682]
[1721024200454,2.8352,3350.0,3349.7,3.0]
[1721024202096,1.35,3349.6,3349.0,2.99971693]
[1721024202795,1.4852,3349.4,3349.0,2.99971693]
[1721024203473,1.4852,3349.4,3349.1,3.0]
[1721024205773,2.8352,3349.4,3349.0,0.31236693]
[1721024205983,1.4852,3349.2,3349.0,0.31236693]
[1721024208181,1.35,3349.1,3349.0,0.31236693]
[1721024208689,1.35,3349.1,3347.8,2.68827]
[1721024208690,1.35,3348.5,3347.8,2.68827]
[1721024208889,3.846,3348.5,3347.9,0.06102161]
[1721024209090,3.846,3348.5,3347.9,2.68819]
[1721024209287,3.846,3348.5,3348.0,2.74915043]
[1721024209818,2.496,3348.5,3348.1,2.68806]
[1721024210035,2.8352,3348.7,3348.1,2.68806]
[1721024210218,1.35,3348.7,3348.2,2.74903321]
[1721024210422,5.82057026,3349.0,3348.3,2.68792]
[1721024210931,5.82057026,3349.0,3348.5,2.6877]
[1721024211228,1.35,3349.0,3348.6,0.06097387]
[1721024211592,1.35,3349.0,3348.5,2.6877]
[1721024212101,1.35,3349.0,3348.6,2.74863442]
[1721024213033,1.4852,3348.9,3348.6,2.74863442]
[1721024213407,1.35,3349.0,3348.6,2.74863442]
[1721024218716,1.35,3349.0,3348.7,2.6876]
[1721024218917,1.35,3349.0,3348.8,0.06089209]
[1721024219145,1.35,3349.0,3348.7,2.6876]
[1721024219326,1.35,3349.0,3348.8,0.06089209]
[1721024219528,1.35,3349.0,3348.7,2.6876]
[1721024219816,1.35,3349.3,3348.8,0.06089209]
[1721024220177,8.12727026,3349.5,3349.1,2.68728]
[1721024220773,1.4852,3349.6,3349.2,0.0607106]
[1721024221069,1.4852,3349.6,3349.3,2.68707]
[1721024221449,1.4852,3349.6,3349.4,0.06064829]
[1721024221889,1.35,3349.7,3349.4,0.06064829]
[1721024222436,1.4852,3349.6,3349.4,0.06064829]
[1721024222739,2.01643,3349.6,3349.4,0.06064829]
[1721024222974,2.01643,3349.6,3349.2,2.6872]
[1721024223140,1.4852,3349.6,3349.3,2.74779944]
[1721024225795,4.47057026,3350.0,3349.4,2.68703]
[1721024225955,4.47057026,3350.0,3349.5,5.68696]
[1721024226350,4.47057026,3350.0,3349.8,2.68671]
[1721024226562,4.47057026,3350.0,3349.9,0.06039386]
[1721024226771,1.35,3350.1,3349.9,0.06039386]
[1721024227474,2.8352,3350.1,3349.9,0.06039386]
[1721024228361,2.8352,3350.1,3349.9,2.74698386]
[1721024229281,1.35,3350.1,3350.0,2.68656]
[1721024229790,1.35,3350.4,3350.0,0.05831458]
[1721024230169,1.35,3350.4,3350.3,2.68632]
[1721024230749,1.35,3350.4,3350.3,2.74452776]
[1721024232887,2.4249,3350.7,3350.5,2.68616]
[1721024233183,3.9101,3350.7,3350.5,2.68616]
[1721024233394,2.4249,3350.7,3350.6,2.74419436]
[1721024234458,3.9101,3350.7,3350.6,2.74419436]
[1721024234654,3.9101,3350.7,3350.6,5.43027436]
[1721024234867,1.4852,3350.7,3350.6,5.43027436]
[1721024235091,1.35,3350.8,3350.7,2.686]
[1721024235478,1.35,3350.8,3350.7,2.743985]
[1721024239996,2.2689,3351.1,3350.9,2.68584]
[1721024239997,3.7541,3351.1,3350.9,2.68584]
[1721024240407,1.35,3351.0,3350.9,2.68584]
[1721024241085,4.47057026,3351.2,3351.1,2.68568]
[1721024241086,5.82057026,3351.2,3351.1,2.68568]
[1721024243688,1.35,3351.2,3351.1,2.68568]
[1721024248116,1.4852,3351.3,3351.0,2.68574]
[1721024248319,1.4852,3351.3,3351.0,2.954314]
[1721024248493,1.4852,3351.3,3351.2,2.6856]
[1721024248698,2.8352,3351.4,3351.3,2.68552]
[1721024250014,6.74727026,3351.7,3350.1,3.0]
[1721024250015,1.35,3350.9,3350.1,3.0]
[1721024250182,1.35,3351.2,3350.0,3.0]
[1721024250387,1.35,3351.2,3351.0,2.68574]
[1721024250934,3.8105,3351.3,3351.0,2.68574]
[1721024251095,3.8105,3351.3,3351.1,2.68566]
[1721024251300,3.8105,3351.3,3351.2,2.6856]
[1721024251301,1.4852,3351.3,3351.2,2.6856]
[1721024251719,1.35,3351.4,3351.0,2.68574]
[1721024251720,1.35,3351.4,3351.3,2.68552]
[1721024253998,1.35,3351.4,3351.3,2.74253905]
[1721024254697,1.35,3351.4,3351.3,0.05701905]
[1721024255098,1.4852,3351.3,3351.2,2.68558]
[1721024259312,1.4852,3351.3,3351.0,2.6857]
[1721024259514,1.4852,3351.3,3351.1,2.68563]
[1721024260351,1.4852,3351.3,3351.2,2.6856]
[1721024261148,1.4852,3351.3,3351.1,2.68563]
[1721024261308,1.4852,3351.3,3351.1,5.37126]
[1721024261511,1.4852,3351.3,3351.2,2.6856]
[1721024262111,1.35,3351.6,3351.2,2.6856]
[1721024262311,1.35,3351.6,3350.4,7.99014]
[1721024262312,4.47057026,3351.7,3351.5,2.68535]
[1721024262936,1.4852,3351.6,3351.5,2.68535]
[1721024263137,1.4852,3351.6,3351.5,5.68535]
[1721024263951,2.8352,3351.6,3351.5,3.0]
[1721024264259,2.2515,3351.5,3351.3,3.0]
[1721024265207,3.7367,3351.5,3351.3,3.0]
[1721024266861,1.35,3351.6,3351.3,5.68552]
[1721024267148,7.30577026,3351.7,3351.3,5.68552]
[1721024267324,1.4852,3351.7,3351.4,0.05685339]
[1721024267524,1.4852,3351.7,3351.5,2.68534]
[1721024267732,1.4852,3351.7,3351.6,2.68528]
[1721024268035,1.4852,3351.7,3351.6,2.74205777]
[1721024268744,1.4852,3351.9,3351.8,2.68512]
[1721024269129,1.4852,3351.9,3351.8,2.74183555]
[1721024271454,1.4852,3351.9,3351.8,0.05671555]
[1721024271812,1.4852,3351.7,3351.6,2.68528]
[1721024272012,1.4852,3351.7,3351.6,2.66368]
[1721024272319,5.244,3351.7,3351.6,0.05677777]
[1721024272549,5.7684,3351.7,3351.6,0.05677777]
[1721024272725,5.7684,3351.7,3351.0,2.6857]
[1721024272726,1.35,3351.4,3351.0,2.6857]
[1721024273055,1.4852,3351.1,3351.0,2.6857]
[1721024273264,1.4852,3351.1,3351.0,5.6857]
[1721024273415,1.35,3351.2,3350.9,0.3121686]
[1721024273622,2.8352,3351.0,3350.9,0.3121686]
[1721024275467,1.35,3350.8,3350.2,3.55938]
[1721024275629,1.35,3350.6,3350.4,0.31227141]
[1721024275951,1.4852,3350.5,3350.4,0.31227141]
[1721024276950,1.35,3350.6,3350.4,0.31227141]
[1721024277530,1.4852,3350.7,3350.4,0.31227141]
[1721024278061,1.4852,3350.7,3350.4,2.99850141]
[1721024278729,0.93841919,3351.0,3350.8,2.68591]
[1721024278730,2.28841919,3351.0,3350.8,2.68591]
[1721024278924,1.35,3351.0,3350.8,2.68591]
[1721024279268,1.4852,3351.1,3350.8,2.68591]
[1721024279469,5.95577026,3351.3,3350.9,0.873]
[1721024279630,1.4852,3351.3,3350.9,0.873]
[1721024279832,1.4852,3351.5,3351.1,2.68568]
[1721024280077,1.4852,3351.7,3351.4,2.68544]
[1721024280541,1.4852,3351.7,3351.5,0.05490313]
[1721024281655,1.4852,3351.7,3351.2,2.6856]
[1721024281862,1.4852,3351.5,3351.3,2.68551]
[1721024283271,1.4852,3351.5,3351.1,2.68568]
[1721024283272,2.8352,3351.5,3351.1,2.68568]
[1721024283638,1.4852,3351.3,3351.1,2.68568]
[1721024283833,2.8352,3351.5,3351.2,0.05512734]
[1721024284178,5.2925,3351.5,3351.2,0.05512734]
[1721024285073,1.4852,3351.3,3351.2,0.05512734]
[1721024285382,3.9425,3351.5,3351.2,2.74071734]
[1721024285673,1.4852,3351.5,3351.2,2.74071734]
[1721024286148,2.8352,3351.5,3351.2,2.74071734]
[1721024287342,1.4852,3351.3,3351.2,0.05512734]
[1721024287766,1.4852,3351.3,3351.0,2.68571]
[1721024287935,1.4852,3351.3,3351.2,0.05512734]
[1721024288146,1.4852,3351.3,3351.1,0.05515847]
[1721024288372,1.4852,3351.3,3351.2,0.05512734]
[1721024288571,2.8352,3351.3,3351.2,0.05512734]
[1721024288775,1.35,3351.1,3350.8,5.68592]
[1721024289579,2.8352,3351.1,3350.8,5.68592]
[1721024289806,1.4852,3350.9,3350.8,5.68592]
[1721024290335,2.8352,3351.1,3350.8,5.68592]
[1721024290817,2.42361919,3351.5,3351.3,2.6855]
[1721024290976,4.75791919,3351.7,3351.4,2.68544]
[1721024291171,2.42361919,3351.7,3351.4,2.68544]
[1721024291688,1.4852,3351.3,3351.2,2.68554]
[1721024291985,0.93841919,3351.6,3351.4,2.68544]
[1721024291986,1.4852,3351.5,3351.4,2.68544]
[1721024292868,1.4852,3351.5,3351.2,2.68556]
[1721024293072,2.4294,3351.4,3351.0,2.68575]
[1721024293384,1.4852,3351.3,3351.0,2.68575]
[1721024293580,1.4852,3351.3,3351.1,2.68567]
[1721024293801,2.4294,3351.4,3351.1,2.68567]
[1721024293984,1.4852,3351.3,3351.1,2.68567]
[1721024295202,1.4852,3351.1,3350.9,2.6858]
[1721024295406,1.4852,3350.9,3350.8,3.0]
[1721024295611,1.4852,3351.1,3350.8,5.6859]
[1721024296181,1.4852,3350.9,3350.8,3.0]
[1721024296505,1.4852,3350.9,3350.7,0.3122216]
[1721024297189,0.93886328,3351.3,3351.2,2.6856]
[1721024297389,3.77406328,3351.7,3351.4,2.68541]
[1721024297614,2.8352,3351.7,3351.4,2.68541]
[1721024298787,2.8352,3351.7,3351.5,0.0550578]
[1721024299224,2.8352,3351.7,3351.5,2.7404078]
[1721024299587,2.42403383,3352.1,3351.7,2.6852]
[1721024299784,2.42403383,3352.1,3351.8,0.05496447]
[1721024300020,1.4852,3352.1,3351.7,2.6852]
[1721024300204,1.4852,3352.1,3351.8,0.05488266]
[1721024300396,1.4852,3352.1,3351.7,2.6852]
[1721024300599,1.4852,3352.1,3351.9,2.68499]
[1721024300832,1.4852,3352.1,3352.0,0.05482044]
[1721024303305,1.4852,3352.1,3352.0,2.73978044]
[1721024304403,2.42378301,3352.3,3352.1,2.68484]
[1721024304727,3.7224,3352.4,3352.2,2.73895993]
[1721024304728,1.35,3352.4,3352.2,2.73895993]
[1721024304925,1.35,3352.4,3352.2,0.05415993]
[1721024305139,1.35,3352.4,3352.1,2.68485]
[1721024305140,2.17443533,3352.4,3352.1,2.68485]
[1721024305309,1.4852,3352.5,3352.3,0.05410058]
[1721024305507,1.4852,3352.5,3352.4,2.68464]
[1721024305724,1.4352,3352.5,3352.4,2.73870948]
[1721024306893,1.4352,3352.5,3352.4,2.68464]
[1721024307091,1.4352,3352.5,3352.2,2.68477]
[1721024307293,1.4352,3352.5,3352.4,0.05387468]
[1721024307535,1.35,3352.6,3352.3,2.73862577]
[1721024307732,1.35,3352.6,3352.4,2.73851468]
[1721024308828,0.93858301,3352.9,3352.4,0.05387468]
[1721024309140,1.4352,3352.9,3352.7,2.68434]
[1721024309339,1.0,3353.0,3352.8,2.68432]
[1721024309638,1.4352,3352.9,3352.8,0.05373543]
[1721024309794,2.7852,3352.7,3352.1,2.68481]
[1721024309999,1.35,3352.2,3351.6,2.68522]
[1721024310405,1.35,3352.2,3351.4,2.68542]
[1721024310406,1.4352,3352.1,3351.7,2.68519]
[1721024310920,1.4352,3352.1,3351.4,2.68542]
[1721024310921,1.35,3352.2,3351.5,2.99741781]
[1721024311112,1.35,3351.6,3351.5,0.31211781]
[1721024311651,2.7852,3351.6,3351.5,0.31211781]
[1721024311798,7.95338,3351.6,3351.5,0.31211781]
[1721024312119,7.95338,3351.6,3350.4,2.68624]
[1721024312120,1.35,3350.8,3350.4,2.68624]
[1721024312698,1.35,3350.8,3350.5,0.31226887]
[1721024313122,1.4352,3350.7,3350.5,0.31226887]
[1721024313326,1.35,3350.8,3350.5,0.31226887]
[1721024314021,1.35,3350.8,3350.6,0.05269758]
[1721024314727,1.4352,3350.7,3350.6,0.05269758]
[1721024315044,1.35,3350.8,3350.6,0.05269758]
[1721024319154,1.4352,3350.7,3350.6,0.05269758]
[1721024319455,1.35,3350.8,3350.6,0.05269758]
[1721024319760,1.4352,3350.7,3350.6,0.05269758]
[1721024320866,1.4352,3350.7,3350.6,0.05314969]
[1721024321067,2.434487,3350.7,3350.5,0.31226887]
[1721024321380,1.35,3350.7,3350.5,0.31226887]
[1721024321937,1.35,3350.8,3350.5,0.31226887]
[1721024322174,1.4352,3350.9,3350.5,0.31226887]
[1721024322370,1.35,3350.8,3350.5,0.31226887]
[1721024322655,8.12787026,3351.3,3350.5,0.31226887]
[1721024322878,4.47057026,3351.3,3350.9,2.68584]
[1721024323157,1.4352,3351.7,3350.5,0.31226887]
[1721024323362,1.4352,3351.5,3351.3,2.68551]
[1721024324050,3.735,3351.8,3351.0,2.68569]
[1721024324051,5.1702,3351.8,3351.4,2.68543]
[1721024324228,2.7852,3351.8,3351.4,2.953973]
[1721024324953,4.47057026,3352.1,3351.6,2.68527]
[1721024325140,1.35,3352.6,3352.2,2.68478]
[1721024325517,1.4352,3352.5,3352.2,2.68478]
[1721024325929,1.35,3352.6,3351.9,2.68496]
[1721024326152,1.35,3352.6,3352.1,2.68482]
[1721024327191,1.4352,3352.5,3352.1,2.68482]
[1721024328194,1.35,3352.1,3351.5,3.0]
[1721024328350,1.35,3352.1,3350.8,0.62270852]
[1721024328351,1.35,3352.1,3351.1,3.0]
[1721024328682,2.7852,3352.3,3351.7,2.68519]
[1721024328889,2.7852,3352.3,3351.8,3.05066535]
[1721024329051,1.35,3352.1,3351.8,0.05066535]
[1721024329251,1.35,3352.1,3351.6,5.68526]
[1721024329480,1.35,3352.1,3351.7,0.05069348]
[1721024329790,2.7852,3352.1,3351.7,0.05069348]
[1721024330151,1.4352,3351.9,3351.4,2.68543]
[1721024330349,1.4352,3351.9,3351.5,2.68535]
[1721024330780,1.4352,3351.9,3351.6,0.0507469]
[1721024331946,1.4352,3351.7,3351.6,0.0507469]
[1721024332696,1.4352,3351.7,3351.3,2.68551]
[1721024332986,1.35,3351.5,3351.4,0.05080913]
[1721024333290,1.35,3351.5,3351.0,2.68575]
[1721024333454,1.35,3351.5,3351.1,2.73652248]
[1721024333653,1.4352,3351.3,3351.1,0.05090248]
[1721024333982,2.7852,3351.7,3351.1,0.05090248]
[1721024334183,1.4352,3351.4,3351.1,0.05090248]
[1721024335093,4.47057026,3351.8,3351.3,2.68551]
[1721024335296,4.47057026,3351.8,3351.5,2.68529]
[1721024335754,4.47057026,3351.8,3351.6,0.0507469]
[1721024337657,4.47057026,3351.8,3351.7,2.6852]
[1721024337902,4.47057026,3351.8,3351.7,2.73594403]
[1721024338683,5.90577026,3352.4,3351.9,2.68503]
[1721024338881,2.3331,3352.6,3351.9,2.68503]
[1721024339194,2.7852,3352.3,3352.0,0.05065071]
[1721024340004,1.4352,3352.1,3352.0,0.05065071]
[1721024340512,1.35,3352.3,3352.0,2.73561071]
[1721024340713,2.7852,3352.5,3352.0,2.73561071]
[1721024340856,1.4352,3352.5,3352.2,2.68478]
[1721024341062,1.4352,3352.5,3352.3,0.05051067]
[1721024341562,2.7852,3352.5,3352.3,0.05051067]
[1721024341991,1.35,3352.2,3351.6,2.68526]
[1721024342193,1.4352,3352.1,3351.7,2.68519]
[1721024342399,1.35,3352.2,3351.8,0.268519]
[1721024342918,1.35,3352.2,3351.9,0.05063508]
[1721024343201,1.4352,3352.1,3351.9,0.05063508]
[1721024343686,2.7852,3352.0,3351.9,0.05063508]
[1721024343888,1.4352,3351.8,3351.3,2.68551]
[1721024344190,1.4352,3351.9,3351.4,0.04913051]
[1721024344579,1.4352,3351.7,3351.3,2.68551]
[1721024344771,1.4352,3351.9,3351.4,2.68542]
[1721024344971,1.4352,3351.7,3351.4,2.73455051]
[1721024345172,1.4352,3351.5,3351.4,0.04913051]
[1721024345389,1.35,3351.7,3351.4,0.04913051]
[1721024345587,2.7852,3351.7,3351.2,2.99706617]
[1721024345787,1.35,3351.7,3351.5,0.04912606]
[1721024345988,2.7852,3351.7,3351.2,2.99706617]
[1721024346302,1.4352,3351.5,3351.2,2.99706617]
[1721024346510,1.35,3351.4,3351.3,0.04918829]
[1721024346693,1.35,3351.4,3351.2,0.31147617]
[1721024346874,1.35,3351.4,3351.3,0.04918829]
[1721024347188,1.4352,3351.3,3351.2,0.31147617]
[1721024348713,1.4352,3351.5,3351.2,0.31147617]
[1721024350615,1.35,3351.6,3351.2,2.99707617]
[1721024350832,1.4352,3351.7,3351.2,2.99707617]
[1721024351320,1.4352,3351.7,3351.3,2.68551]
[1721024351523,2.7852,3351.9,3351.4,2.68541]
[1721024351825,2.3403,3352.0,3351.5,0.0596695]
[1721024352117,1.35,3352.1,3351.5,0.0596695]
[1721024352323,1.35,3352.1,3351.7,2.6852]
[1721024352794,4.47057026,3352.2,3351.8,0.04910682]
[1721024352997,4.47057026,3352.2,3351.8,0.10877007]
[1721024353193,4.47057026,3352.2,3351.8,0.33906026]
[1721024353531,5.90577026,3352.2,3351.8,2.96450701]
[1721024353727,5.90577026,3352.2,3351.8,2.68511]
[1721024353890,5.90577026,3352.2,3351.9,0.04914537]
[1721024354939,4.47057026,3352.2,3352.0,2.68496]
[1721024355094,1.4352,3352.6,3352.0,2.68496]
[1721024355295,1.4352,3352.6,3352.1,0.04905056]
[1721024355519,1.4352,3352.6,3352.0,2.7446191]
[1721024355854,5.82057026,3352.7,3351.8,2.68511]
[1721024355855,1.35,3352.3,3351.8,2.68511]
[1721024356010,1.35,3352.3,3352.1,0.04905056]
[1721024356191,1.35,3352.3,3351.8,2.74477063]
[1721024356535,1.35,3352.3,3351.9,2.68503]
[1721024356690,1.35,3352.3,3351.9,2.73412203]
[1721024356894,7.25577026,3352.7,3352.0,2.68494]
[1721024357095,1.35,3352.3,3352.1,0.04902982]
[1721024357318,2.7852,3352.3,3352.1,0.04902982]
[1721024357722,2.7852,3352.3,3351.8,2.68506]
[1721024357959,2.7852,3352.3,3352.2,0.04900316]
[1721024358107,2.7852,3352.3,3351.8,2.68506]
[1721024358309,2.7852,3352.3,3351.9,0.04909648]
[1721024358612,2.7852,3352.3,3351.9,3.28204419]
[1721024358799,2.7852,3352.3,3351.9,2.73413648]
[1721024359001,2.7852,3352.5,3351.9,2.73413648]
[1721024359233,2.7852,3352.5,3352.1,2.68487]
[1721024359398,1.35,3352.5,3352.1,2.68487]
[1721024359595,2.7852,3352.5,3352.2,0.04899724]
[1721024360203,2.7852,3352.5,3352.1,2.68487]
[1721024360525,2.7852,3352.5,3352.2,0.04899724]
[1721024360526,1.4352,3352.3,3352.2,0.04899724]
[1721024360906,1.4352,3352.3,3351.9,2.68504]
[1721024361105,1.4352,3352.3,3352.0,0.04905944]
[1721024361615,2.7852,3352.3,3352.0,0.04905944]
[1721024361816,1.4352,3352.1,3352.0,0.04905944]
[1721024362023,1.4352,3352.1,3351.6,2.68524]
[1721024362215,1.4352,3352.1,3352.0,0.04905944]
[1721024362421,1.4352,3352.1,3351.5,2.99662471]
[1721024362422,1.4352,3352.1,3351.7,2.68519]
[1721024362740,1.4352,3352.1,3352.0,0.04905944]
[1721024362926,1.4352,3352.1,3351.7,2.68519]
[1721024363100,1.4352,3352.1,3352.0,0.04905944]
[1721024363302,1.4352,3352.1,3351.7,2.68519]
[1721024363512,1.4352,3352.1,3351.8,0.04912166]
[1721024363810,1.4352,3352.3,3351.7,2.68518]
[1721024364014,1.4352,3352.3,3351.9,0.04909055]
[1721024364242,1.4352,3352.3,3351.8,0.04912166]
[1721024364427,1.4352,3352.3,3352.0,0.04905944]
[1721024364760,2.7852,3352.1,3351.6,0.31107444]
[1721024365420,1.4352,3352.1,3351.6,0.31107444]
[1721024367045,1.4352,3352.1,3351.7,2.68518]
[1721024367223,1.4352,3352.1,3351.6,0.31107444]
[1721024367425,1.35,3352.0,3351.6,0.31107444]
[1721024368459,1.4352,3352.1,3351.6,0.31107444]
[1721024368856,1.4352,3352.1,3351.7,2.68517]
[1721024370145,2.7852,3352.3,3351.7,2.68517]
[1721024370479,1.4352,3352.3,3351.7,2.68517]
[1721024370825,1.4352,3352.3,3351.9,2.68503]
[1721024373973,1.4352,3352.3,3352.0,0.04900757]
[1721024375177,1.4352,3352.3,3351.7,2.99652234]
[1721024375470,1.4352,3352.3,3351.8,2.68512]
[1721024375676,1.4352,3352.3,3351.9,0.04902386]
[1721024376272,1.4352,3352.3,3351.9,2.73405386]
[1721024376464,2.7852,3352.3,3351.9,0.04902386]
[1721024376870,2.7852,3352.3,3352.0,0.0489972]
[1721024377047,2.7852,3352.3,3351.7,2.99655234]
[1721024377248,2.7852,3352.3,3351.8,0.04905942]
[1721024377447,2.7852,3352.3,3351.7,2.99655234]
[1721024377757,2.7852,3352.3,3351.8,0.34871465]
[1721024378072,1.35,3352.0,3351.8,0.04905942]
[1721024378275,1.35,3352.0,3351.7,0.31135234]
[1721024378480,1.4352,3352.1,3351.8,0.04905942]
[1721024378658,2.7852,3352.3,3351.7,0.31135234]
[1721024378866,1.4352,3352.3,3351.8,0.10872548]
[1721024379584,2.2783,3352.4,3351.9,2.68504]
[1721024379955,2.7852,3352.3,3352.0,0.04901054]
[1721024380287,2.7852,3352.1,3351.7,0.31135234]
[1721024380494,2.7852,3352.1,3351.8,0.04907275]
[1721024380681,1.4352,3351.9,3351.7,0.31135234]
[1721024380887,1.4352,3351.9,3351.8,0.04905497]
[1721024381056,1.4352,3351.9,3351.7,0.31135234]
[1721024381400,3.7225,3351.8,3351.7,0.31135234]
[1721024381705,2.2873,3351.2,3350.4,2.68622]
[1721024381858,2.2873,3351.2,3350.6,0.31117775]
[1721024382178,1.4352,3351.1,3350.6,0.31117775]
[1721024383993,1.4352,3350.9,3350.6,0.31117775]
[1721024384166,5.77745,3350.9,3350.6,0.31117775]
[1721024384364,1.4352,3350.7,3350.6,0.31117775]
[1721024384694,1.4352,3350.7,3350.2,0.31109129]
[1721024385061,2.7852,3350.7,3350.2,0.31109129]
[1721024386060,1.35,3350.5,3350.2,0.31109129]
[1721024386261,2.7852,3350.5,3350.2,0.31109129]
[1721024386751,1.35,3350.5,3350.2,0.31109129]
[1721024386955,2.7852,3350.5,3350.2,0.31109129]
[1721024387969,1.4352,3350.5,3350.2,0.31109129]
[1721024388192,2.7852,3350.7,3350.2,0.31109129]
[1721024388366,1.35,3350.7,3350.2,0.31109129]
[1721024388690,5.82057026,3350.9,3350.2,0.31109129]
[1721024388986,1.35,3350.8,3350.2,0.31109129]